[Event "Titled Tuesday Blitz August 22 Late 2023"]
[White "cthake"]
[Black "Arias, Juan Cruz"]
[BlackFideId "118540"]
[WhiteElo "1844"]
[BlackElo "2657"]
[Result "0-1"]
[Round "2"]
[TimeControl "180+1"]
[Date "2023.08.22"]
[WhiteClock "0:00:24"]
[BlackClock "0:02:22"]
[Board "101"]

1. c4 {[%clk 0:03:00]}  e5 {[%clk 0:02:56]} 2. Nc3 {[%clk 0:03:00]}  Nc6 {[%clk 0:02:55]} 3. g3 {[%clk 0:02:59]}  g6 {[%clk 0:02:55]} 4. Bg2 {[%clk 0:02:59]}  Bg7 {[%clk 0:02:56]} 5. d3 {[%clk 0:02:58]}  d6 {[%clk 0:02:56]} 6. e4 {[%clk 0:02:58]}  f5 {[%clk 0:02:57]} 7. Nge2 {[%clk 0:02:41]}  Nh6 {[%clk 0:02:54]} 8. O-O {[%clk 0:02:40]}  O-O {[%clk 0:02:54]} 9. h3 {[%clk 0:02:37]}  f4 {[%clk 0:02:54]} 10. gxf4 {[%clk 0:02:35]}  Qh4 {[%clk 0:02:53]} 11. fxe5 {[%clk 0:02:12]}  dxe5 {[%clk 0:02:51]} 12. Ng3 {[%clk 0:01:56]}  Bxh3 {[%clk 0:02:50]} 13. Bxh6 {[%clk 0:01:28]}  Bxh6 {[%clk 0:02:46]} 14. Nce2 {[%clk 0:01:10]}  Rad8 {[%clk 0:02:31]} 15. Kh2 {[%clk 0:01:05]}  Bg4+ {[%clk 0:02:29]} 16. Kg1 {[%clk 0:01:03]}  Nd4 {[%clk 0:02:29]} 17. Re1 {[%clk 0:00:30]}  Rxf2 {[%clk 0:02:24]} 18. Kxf2 {[%clk 0:00:27]}  Rf8+ {[%clk 0:02:23]} 19. Kg1 {[%clk 0:00:24]}  Be3# {[%clk 0:02:22]} 0-1


[Site "https://www.chess.com"]

[Event "Titled Tuesday Blitz August 22 Late 2023"]
[White "Grischuk, Alexander"]
[Black "Hartikainen, Jarmo"]
[WhiteFideId "4126025"]
[BlackFideId "503134"]
[WhiteElo "3008"]
[BlackElo "2107"]
[Result "1-0"]
[Round "2"]
[TimeControl "180+1"]
[Date "2023.08.22"]
[WhiteClock "0:00:35"]
[BlackClock "0:00:02"]
[Board "102"]

1. e4 {[%clk 0:03:00]}  c5 {[%clk 0:02:59]} 2. Nc3 {[%clk 0:03:00]}  e6 {[%clk 0:02:58]} 3. Nf3 {[%clk 0:03:00]}  d5 {[%clk 0:02:58]} 4. exd5 {[%clk 0:02:59]}  exd5 {[%clk 0:02:59]} 5. Bb5+ {[%clk 0:02:58]}  Nc6 {[%clk 0:02:58]} 6. d4 {[%clk 0:02:58]}  Nf6 {[%clk 0:02:58]} 7. O-O {[%clk 0:02:57]}  Be7 {[%clk 0:02:58]} 8. dxc5 {[%clk 0:02:57]}  O-O {[%clk 0:02:57]} 9. Be3 {[%clk 0:02:50]}  Bg4 {[%clk 0:02:55]} 10. h3 {[%clk 0:02:43]}  Bh5 {[%clk 0:02:54]} 11. Bxc6 {[%clk 0:02:30]}  bxc6 {[%clk 0:02:54]} 12. Bd4 {[%clk 0:02:31]}  Rb8 {[%clk 0:02:46]} 13. Qd3 {[%clk 0:02:10]}  Ne4 {[%clk 0:02:40]} 14. Ne5 {[%clk 0:02:01]}  Qc7 {[%clk 0:02:20]} 15. Nxe4 {[%clk 0:02:00]}  dxe4 {[%clk 0:02:18]} 16. Qxe4 {[%clk 0:02:01]}  Bf6 {[%clk 0:01:55]} 17. Rfe1 {[%clk 0:01:38]}  Rbd8 {[%clk 0:01:27]} 18. c3 {[%clk 0:01:25]}  Rfe8 {[%clk 0:01:09]} 19. Qf5 {[%clk 0:01:22]}  Bg6 {[%clk 0:00:59]} 20. Nxg6 {[%clk 0:01:22]}  hxg6 {[%clk 0:00:59]} 21. Rxe8+ {[%clk 0:01:23]}  Rxe8 {[%clk 0:00:58]} 22. Qd3 {[%clk 0:01:22]}  Rd8 {[%clk 0:00:52]} 23. Rd1 {[%clk 0:01:21]}  Qf4 {[%clk 0:00:24]} 24. b4 {[%clk 0:01:17]}  Be5 {[%clk 0:00:17]} 25. g3 {[%clk 0:01:14]}  Qg5 {[%clk 0:00:11]} 26. a4 {[%clk 0:01:03]}  Qf6 {[%clk 0:00:10]} 27. Kg2 {[%clk 0:01:01]}  Bxd4 {[%clk 0:00:10]} 28. cxd4 {[%clk 0:01:00]}  a6 {[%clk 0:00:10]} 29. Qxa6 {[%clk 0:00:45]}  Rxd4 {[%clk 0:00:10]} 30. Rxd4 {[%clk 0:00:44]}  Qxd4 {[%clk 0:00:10]} 31. Qxc6 {[%clk 0:00:42]}  Qxb4 {[%clk 0:00:10]} 32. h4 {[%clk 0:00:38]}  Qa5 {[%clk 0:00:09]} 33. Qb5 {[%clk 0:00:35]}  Qa8+ {[%clk 0:00:08]} 34. c6 {[%clk 0:00:35]}  Kh7 {[%clk 0:00:06]} 35. Qb7 {[%clk 0:00:35]}  Qxa4 {[%clk 0:00:02]} 36. c7 {[%clk 0:00:35]} 1-0


[Site "https://www.chess.com"]

[Event "Titled Tuesday Blitz August 22 Late 2023"]
[White "Grinev, Valeriy"]
[Black "Schmakel, Sam"]
[WhiteFideId "14117517"]
[BlackFideId "2039311"]
[WhiteElo "2510"]
[BlackElo "2760"]
[Result "0-1"]
[Round "2"]
[TimeControl "180+1"]
[Date "2023.08.22"]
[WhiteClock "0:01:46"]
[BlackClock "0:01:46"]
[Board "105"]

1. d4 {[%clk 0:02:57]}  Nf6 {[%clk 0:02:59]} 2. c4 {[%clk 0:02:57]}  e6 {[%clk 0:02:59]} 3. Nc3 {[%clk 0:02:57]}  Bb4 {[%clk 0:02:58]} 4. e3 {[%clk 0:02:57]}  O-O {[%clk 0:02:58]} 5. Bd2 {[%clk 0:02:57]}  b6 {[%clk 0:02:54]} 6. Nf3 {[%clk 0:02:52]}  Bb7 {[%clk 0:02:54]} 7. Rc1 {[%clk 0:02:51]}  d6 {[%clk 0:02:51]} 8. a3 {[%clk 0:02:49]}  Bxc3 {[%clk 0:02:51]} 9. Bxc3 {[%clk 0:02:50]}  Nbd7 {[%clk 0:02:51]} 10. Be2 {[%clk 0:02:50]}  Ne4 {[%clk 0:02:51]} 11. O-O {[%clk 0:02:50]}  f5 {[%clk 0:02:51]} 12. Be1 {[%clk 0:02:50]}  g5 {[%clk 0:02:48]} 13. Nd2 {[%clk 0:02:49]}  Nxd2 {[%clk 0:02:41]} 14. Qxd2 {[%clk 0:02:48]}  Nf6 {[%clk 0:02:40]} 15. f3 {[%clk 0:02:48]}  Qe8 {[%clk 0:02:39]} 16. b4 {[%clk 0:02:46]}  g4 {[%clk 0:02:34]} 17. Bh4 {[%clk 0:02:43]}  gxf3 {[%clk 0:02:28]} 18. gxf3 {[%clk 0:02:38]}  Qh5 {[%clk 0:02:26]} 19. Qe1 {[%clk 0:02:19]}  Kh8 {[%clk 0:02:20]} 20. d5 {[%clk 0:02:14]}  exd5 {[%clk 0:02:04]} 21. Bxf6+ {[%clk 0:02:13]}  Rxf6 {[%clk 0:02:04]} 22. cxd5 {[%clk 0:02:13]}  Rg8+ {[%clk 0:01:59]} 23. Qg3 {[%clk 0:01:56]}  Rxg3+ {[%clk 0:01:56]} 24. hxg3 {[%clk 0:01:56]}  Qh3 {[%clk 0:01:49]} 25. Rf2 {[%clk 0:01:52]}  Rh6 {[%clk 0:01:46]} 26. Rg2 {[%clk 0:01:47]}  Qh1+ {[%clk 0:01:46]} 27. Kf2 {[%clk 0:01:46]}  Qxc1 {[%clk 0:01:46]} 0-1


[Site "https://www.chess.com"]

[Event "Titled Tuesday Blitz August 22 Late 2023"]
[White "Santos, Marcus Vinicius Moreira"]
[Black "Tanenbaum, Zachary"]
[WhiteFideId "2103125"]
[BlackFideId "2060850"]
[WhiteElo "2433"]
[BlackElo "2717"]
[Result "0-1"]
[Round "2"]
[TimeControl "180+1"]
[Date "2023.08.22"]
[WhiteClock "0:00:15"]
[BlackClock "0:00:14"]
[Board "107"]

1. e4 {[%clk 0:02:59]}  e5 {[%clk 0:02:59]} 2. Nf3 {[%clk 0:02:59]}  Nc6 {[%clk 0:03:00]} 3. Bc4 {[%clk 0:02:59]}  Nf6 {[%clk 0:02:59]} 4. d3 {[%clk 0:02:57]}  Be7 {[%clk 0:02:59]} 5. O-O {[%clk 0:02:56]}  O-O {[%clk 0:02:58]} 6. Re1 {[%clk 0:02:56]}  d6 {[%clk 0:02:58]} 7. a3 {[%clk 0:02:55]}  Be6 {[%clk 0:02:57]} 8. Nbd2 {[%clk 0:02:52]}  Nd7 {[%clk 0:02:52]} 9. c3 {[%clk 0:02:46]}  Bg5 {[%clk 0:02:51]} 10. Nxg5 {[%clk 0:02:40]}  Qxg5 {[%clk 0:02:52]} 11. Nf3 {[%clk 0:02:40]}  Qg6 {[%clk 0:02:41]} 12. Bxe6 {[%clk 0:02:26]}  fxe6 {[%clk 0:02:42]} 13. d4 {[%clk 0:02:15]}  Rf7 {[%clk 0:02:37]} 14. Ng5 {[%clk 0:01:43]}  Rf6 {[%clk 0:02:31]} 15. d5 {[%clk 0:01:38]}  exd5 {[%clk 0:02:26]} 16. exd5 {[%clk 0:01:39]}  Nd8 {[%clk 0:02:00]} 17. Ne4 {[%clk 0:01:37]}  Rf5 {[%clk 0:01:53]} 18. c4 {[%clk 0:01:36]}  Nf7 {[%clk 0:01:40]} 19. Be3 {[%clk 0:01:33]}  Nh6 {[%clk 0:01:33]} 20. h3 {[%clk 0:01:21]}  Raf8 {[%clk 0:01:31]} 21. Rc1 {[%clk 0:01:17]}  Rf3 {[%clk 0:00:58]} 22. Ng3 {[%clk 0:00:58]}  R3f7 {[%clk 0:00:58]} 23. Bxh6 {[%clk 0:00:58]}  gxh6 {[%clk 0:00:50]} 24. Qc2 {[%clk 0:00:27]}  Rxf2 {[%clk 0:00:45]} 25. Qxf2 {[%clk 0:00:27]}  Rxf2 {[%clk 0:00:44]} 26. Kxf2 {[%clk 0:00:28]}  Nc5 {[%clk 0:00:44]} 27. Nf1 {[%clk 0:00:20]}  Nd3+ {[%clk 0:00:43]} 28. Kg1 {[%clk 0:00:20]}  Nxe1 {[%clk 0:00:40]} 29. Rxe1 {[%clk 0:00:20]}  Qd3 {[%clk 0:00:40]} 30. Ne3 {[%clk 0:00:19]}  Qd2 {[%clk 0:00:38]} 31. Kf1 {[%clk 0:00:18]}  Qxb2 {[%clk 0:00:37]} 32. Nf5 {[%clk 0:00:18]}  Qxa3 {[%clk 0:00:30]} 33. Nxh6+ {[%clk 0:00:18]}  Kg7 {[%clk 0:00:29]} 34. Nf5+ {[%clk 0:00:18]}  Kf6 {[%clk 0:00:28]} 35. Ne3 {[%clk 0:00:19]}  Qd3+ {[%clk 0:00:24]} 36. Kf2 {[%clk 0:00:19]}  a5 {[%clk 0:00:23]} 37. Rf1 {[%clk 0:00:18]}  Kg6 {[%clk 0:00:19]} 38. g4 {[%clk 0:00:18]}  a4 {[%clk 0:00:19]} 39. Kf3 {[%clk 0:00:18]}  a3 {[%clk 0:00:18]} 40. Ra1 {[%clk 0:00:17]}  Qb3 {[%clk 0:00:16]} 41. Ke4 {[%clk 0:00:15]}  Qb2 {[%clk 0:00:15]} 42. Rf1 {[%clk 0:00:15]}  Qd4+ {[%clk 0:00:14]} 43. Kf3 {[%clk 0:00:14]}  a2 {[%clk 0:00:14]} 44. h4 {[%clk 0:00:14]}  Qf4+ {[%clk 0:00:14]} 45. Ke2 {[%clk 0:00:15]}  Qxf1+ {[%clk 0:00:14]} 46. Nxf1 {[%clk 0:00:15]}  a1=Q {[%clk 0:00:14]} 47. h5+ {[%clk 0:00:15]}  Kg5 {[%clk 0:00:14]} 0-1


[Site "https://www.chess.com"]

[Event "Titled Tuesday Blitz August 22 Late 2023"]
[White "Skatchkov, Valery"]
[Black "Antonios, Johnny"]
[WhiteFideId "24195812"]
[BlackFideId "5300843"]
[WhiteElo "2638"]
[BlackElo "2393"]
[Result "1-0"]
[Round "2"]
[TimeControl "180+1"]
[Date "2023.08.22"]
[WhiteClock "0:00:03"]
[BlackClock "0:00:04"]
[Board "109"]

1. d4 {[%clk 0:03:00]}  Nf6 {[%clk 0:02:59]} 2. c4 {[%clk 0:03:01]}  e6 {[%clk 0:02:59]} 3. Nf3 {[%clk 0:02:59]}  b6 {[%clk 0:02:59]} 4. g3 {[%clk 0:02:59]}  Ba6 {[%clk 0:03:00]} 5. b3 {[%clk 0:02:58]}  Bb7 {[%clk 0:03:00]} 6. Bg2 {[%clk 0:02:58]}  Bb4+ {[%clk 0:03:01]} 7. Nbd2 {[%clk 0:02:58]}  Bc3 {[%clk 0:03:01]} 8. Rb1 {[%clk 0:02:52]}  Bxd4 {[%clk 0:03:01]} 9. O-O {[%clk 0:02:50]}  Bc5 {[%clk 0:03:01]} 10. Bb2 {[%clk 0:02:50]}  d5 {[%clk 0:02:57]} 11. Qc2 {[%clk 0:02:47]}  Nbd7 {[%clk 0:02:54]} 12. Rbd1 {[%clk 0:02:47]}  O-O {[%clk 0:02:54]} 13. e3 {[%clk 0:02:41]}  Qe7 {[%clk 0:02:51]} 14. Nb1 {[%clk 0:02:35]}  Rac8 {[%clk 0:02:50]} 15. Nc3 {[%clk 0:02:35]}  a6 {[%clk 0:02:44]} 16. Nd4 {[%clk 0:02:31]}  Ba3 {[%clk 0:02:40]} 17. Ba1 {[%clk 0:02:29]}  Rfd8 {[%clk 0:02:23]} 18. cxd5 {[%clk 0:02:27]}  exd5 {[%clk 0:02:17]} 19. Nf5 {[%clk 0:02:25]}  Qf8 {[%clk 0:02:17]} 20. Nxd5 {[%clk 0:02:21]}  Bxd5 {[%clk 0:02:11]} 21. Bxd5 {[%clk 0:02:21]}  g6 {[%clk 0:01:41]} 22. Bc6 {[%clk 0:02:04]}  Qc5 {[%clk 0:01:24]} 23. Qxc5 {[%clk 0:01:58]}  Bxc5 {[%clk 0:01:24]} 24. Nh6+ {[%clk 0:01:58]}  Kf8 {[%clk 0:01:24]} 25. Bb7 {[%clk 0:01:51]}  Rb8 {[%clk 0:01:24]} 26. Bxa6 {[%clk 0:01:51]}  Ra8 {[%clk 0:01:12]} 27. Bb7 {[%clk 0:01:50]}  Rxa2 {[%clk 0:01:13]} 28. Bxf6 {[%clk 0:01:35]}  Nxf6 {[%clk 0:01:13]} 29. Rxd8+ {[%clk 0:01:35]}  Kg7 {[%clk 0:01:14]} 30. Nxf7 {[%clk 0:00:56]}  Kxf7 {[%clk 0:01:15]} 31. Rc8 {[%clk 0:00:52]}  Bd6 {[%clk 0:01:13]} 32. Bc6 {[%clk 0:00:41]}  Rb2 {[%clk 0:01:10]} 33. Bb5 {[%clk 0:00:41]}  Kg7 {[%clk 0:01:07]} 34. Bc4 {[%clk 0:00:40]}  Ne4 {[%clk 0:01:07]} 35. Bd5 {[%clk 0:00:36]}  Nd2 {[%clk 0:01:05]} 36. Re1 {[%clk 0:00:26]}  Nxb3 {[%clk 0:01:04]} 37. e4 {[%clk 0:00:27]}  Kh6 {[%clk 0:00:52]} 38. e5 {[%clk 0:00:12]}  Bc5 {[%clk 0:00:52]} 39. Re4 {[%clk 0:00:05]}  Rxf2 {[%clk 0:00:48]} 40. Kh1 {[%clk 0:00:03]}  Nd2 {[%clk 0:00:46]} 41. Rf4 {[%clk 0:00:02]}  Re2 {[%clk 0:00:39]} 42. e6 {[%clk 0:00:03]}  Bd6 {[%clk 0:00:35]} 43. Rh4+ {[%clk 0:00:02]}  Kg5 {[%clk 0:00:35]} 44. Rxh7 {[%clk 0:00:02]}  Re5 {[%clk 0:00:32]} 45. Bc6 {[%clk 0:00:01]}  Rc5 {[%clk 0:00:30]} 46. Bd7 {[%clk 0:00:02]}  Nf3 {[%clk 0:00:29]} 47. Kg2 {[%clk 0:00:02]}  Nd4 {[%clk 0:00:28]} 48. Rh4 {[%clk 0:00:03]}  Nf5 {[%clk 0:00:25]} 49. Re4 {[%clk 0:00:02]}  Ne7 {[%clk 0:00:25]} 50. Rf8 {[%clk 0:00:02]}  Rc2+ {[%clk 0:00:24]} 51. Rf2 {[%clk 0:00:03]}  Rc3 {[%clk 0:00:24]} 52. h4+ {[%clk 0:00:03]}  Kh6 {[%clk 0:00:24]} 53. Rf3 {[%clk 0:00:04]}  Rc2+ {[%clk 0:00:24]} 54. Kh3 {[%clk 0:00:04]}  b5 {[%clk 0:00:23]} 55. Rg4 {[%clk 0:00:04]}  Nf5 {[%clk 0:00:19]} 56. h5 {[%clk 0:00:04]}  Nxg3 {[%clk 0:00:17]} 57. Rxg6+ {[%clk 0:00:03]}  Kxh5 {[%clk 0:00:17]} 58. Be8 {[%clk 0:00:03]}  Ne4 {[%clk 0:00:04]} 59. Rf5+ {[%clk 0:00:03]} 1-0


[Site "https://www.chess.com"]

[Event "Titled Tuesday Blitz August 22 Late 2023"]
[White "Hansen, Torbjorn Ringdal"]
[Black "Lacasa Diaz, Jose Antonio"]
[WhiteFideId "1501720"]
[BlackFideId "2203375"]
[WhiteElo "2618"]
[BlackElo "2341"]
[Result "0-1"]
[Round "2"]
[TimeControl "180+1"]
[Date "2023.08.22"]
[WhiteClock "0:00:04"]
[BlackClock "0:00:19"]
[Board "111"]

1. e4 {[%clk 0:03:00]}  c5 {[%clk 0:02:59]} 2. Nf3 {[%clk 0:03:00]}  d6 {[%clk 0:02:56]} 3. Bb5+ {[%clk 0:02:59]}  Bd7 {[%clk 0:02:55]} 4. Bxd7+ {[%clk 0:02:58]}  Qxd7 {[%clk 0:02:56]} 5. O-O {[%clk 0:02:58]}  Nc6 {[%clk 0:02:55]} 6. c3 {[%clk 0:02:57]}  d5 {[%clk 0:02:55]} 7. exd5 {[%clk 0:02:54]}  Qxd5 {[%clk 0:02:55]} 8. d4 {[%clk 0:02:53]}  e6 {[%clk 0:02:54]} 9. Re1 {[%clk 0:02:47]}  Nf6 {[%clk 0:02:52]} 10. Qe2 {[%clk 0:02:34]}  cxd4 {[%clk 0:02:44]} 11. cxd4 {[%clk 0:02:33]}  Be7 {[%clk 0:02:43]} 12. Nc3 {[%clk 0:02:32]}  Qd8 {[%clk 0:02:43]} 13. Bg5 {[%clk 0:02:17]}  O-O {[%clk 0:02:41]} 14. Rad1 {[%clk 0:02:17]}  Nd5 {[%clk 0:02:39]} 15. Bxe7 {[%clk 0:02:06]}  Ncxe7 {[%clk 0:02:37]} 16. Ne4 {[%clk 0:02:04]}  Nf4 {[%clk 0:02:21]} 17. Qd2 {[%clk 0:02:01]}  Ned5 {[%clk 0:02:20]} 18. g3 {[%clk 0:01:58]}  Ng6 {[%clk 0:02:18]} 19. h4 {[%clk 0:01:55]}  h6 {[%clk 0:02:11]} 20. h5 {[%clk 0:01:54]}  Nge7 {[%clk 0:02:11]} 21. Kg2 {[%clk 0:01:55]}  Rc8 {[%clk 0:02:02]} 22. Ne5 {[%clk 0:01:53]}  Nc6 {[%clk 0:01:58]} 23. Nf3 {[%clk 0:01:36]}  Qa5 {[%clk 0:01:35]} 24. Qxa5 {[%clk 0:01:24]}  Nxa5 {[%clk 0:01:35]} 25. Ne5 {[%clk 0:01:19]}  Nc4 {[%clk 0:01:30]} 26. Nxc4 {[%clk 0:01:10]}  Rxc4 {[%clk 0:01:29]} 27. Nd6 {[%clk 0:01:11]}  Rb4 {[%clk 0:01:20]} 28. b3 {[%clk 0:01:09]}  Rd8 {[%clk 0:01:17]} 29. Nc4 {[%clk 0:01:09]}  Nb6 {[%clk 0:01:03]} 30. Nxb6 {[%clk 0:01:01]}  Rxb6 {[%clk 0:01:01]} 31. Kf3 {[%clk 0:01:00]}  Rbd6 {[%clk 0:00:58]} 32. Ke4 {[%clk 0:00:59]}  Rd5 {[%clk 0:00:56]} 33. g4 {[%clk 0:00:57]}  f5+ {[%clk 0:00:54]} 34. gxf5 {[%clk 0:00:56]}  Rxf5 {[%clk 0:00:54]} 35. Kd3 {[%clk 0:00:50]}  Kf7 {[%clk 0:00:51]} 36. Re2 {[%clk 0:00:44]}  Rxh5 {[%clk 0:00:50]} 37. Rde1 {[%clk 0:00:45]}  Rd6 {[%clk 0:00:49]} 38. Re4 {[%clk 0:00:41]}  Rf5 {[%clk 0:00:47]} 39. R1e2 {[%clk 0:00:40]}  g5 {[%clk 0:00:46]} 40. a4 {[%clk 0:00:37]}  h5 {[%clk 0:00:46]} 41. Kc4 {[%clk 0:00:36]}  g4 {[%clk 0:00:46]} 42. b4 {[%clk 0:00:35]}  a6 {[%clk 0:00:43]} 43. b5 {[%clk 0:00:34]}  axb5+ {[%clk 0:00:42]} 44. axb5 {[%clk 0:00:35]}  Kf6 {[%clk 0:00:34]} 45. Ra2 {[%clk 0:00:30]}  Rb6 {[%clk 0:00:31]} 46. Ra8 {[%clk 0:00:23]}  Rfxb5 {[%clk 0:00:26]} 47. Rf8+ {[%clk 0:00:22]}  Kg7 {[%clk 0:00:26]} 48. Re8 {[%clk 0:00:22]}  Rb4+ {[%clk 0:00:25]} 49. Kc3 {[%clk 0:00:22]}  Rb3+ {[%clk 0:00:26]} 50. Kc4 {[%clk 0:00:23]}  Rf3 {[%clk 0:00:24]} 51. Re5 {[%clk 0:00:22]}  Rf5 {[%clk 0:00:20]} 52. Re1 {[%clk 0:00:16]}  Rxf2 {[%clk 0:00:19]} 53. d5 {[%clk 0:00:14]}  exd5+ {[%clk 0:00:19]} 54. Kxd5 {[%clk 0:00:15]}  Rf5+ {[%clk 0:00:18]} 55. Kc4 {[%clk 0:00:14]}  Rc6+ {[%clk 0:00:18]} 56. Kb4 {[%clk 0:00:14]}  Rb6+ {[%clk 0:00:18]} 57. Kc4 {[%clk 0:00:13]}  Rc6+ {[%clk 0:00:19]} 58. Kb4 {[%clk 0:00:13]}  Rcf6 {[%clk 0:00:19]} 59. R1e7+ {[%clk 0:00:13]}  Rf7 {[%clk 0:00:19]} 60. Re2 {[%clk 0:00:13]}  Rf4+ {[%clk 0:00:20]} 61. Kc5 {[%clk 0:00:12]}  h4 {[%clk 0:00:20]} 62. Kd6 {[%clk 0:00:10]}  h3 {[%clk 0:00:21]} 63. R2e5 {[%clk 0:00:09]}  R4f6+ {[%clk 0:00:20]} 64. Kd5 {[%clk 0:00:09]}  Rf5 {[%clk 0:00:21]} 65. Rxf5 {[%clk 0:00:09]}  Rxf5+ {[%clk 0:00:20]} 66. Ke6 {[%clk 0:00:10]}  Rf3 {[%clk 0:00:20]} 67. Re7+ {[%clk 0:00:10]}  Kg6 {[%clk 0:00:20]} 68. Re8 {[%clk 0:00:04]}  Re3+ {[%clk 0:00:19]} 0-1


[Site "https://www.chess.com"]

[Event "Titled Tuesday Blitz August 22 Late 2023"]
[White "Ganiev, Roman"]
[Black "GAO"]
[WhiteFideId "4131452"]
[WhiteElo "2557"]
[BlackElo "2270"]
[Result "1-0"]
[Round "2"]
[TimeControl "180+1"]
[Date "2023.08.22"]
[WhiteClock "0:00:09"]
[BlackClock "0:00:03"]
[Board "116"]

1. e4 {[%clk 0:03:00]}  c5 {[%clk 0:02:55]} 2. Nf3 {[%clk 0:02:59]}  Nc6 {[%clk 0:02:56]} 3. Bb5 {[%clk 0:02:56]}  e5 {[%clk 0:02:52]} 4. O-O {[%clk 0:02:48]}  Bd6 {[%clk 0:02:52]} 5. c3 {[%clk 0:02:43]}  Nge7 {[%clk 0:02:45]} 6. Re1 {[%clk 0:02:43]}  a6 {[%clk 0:02:45]} 7. Ba4 {[%clk 0:02:40]}  b5 {[%clk 0:02:42]} 8. Bc2 {[%clk 0:02:40]}  Bc7 {[%clk 0:02:42]} 9. a4 {[%clk 0:02:39]}  Bb7 {[%clk 0:02:41]} 10. d4 {[%clk 0:02:34]}  cxd4 {[%clk 0:02:35]} 11. cxd4 {[%clk 0:02:34]}  exd4 {[%clk 0:02:23]} 12. e5 {[%clk 0:02:12]}  Nb4 {[%clk 0:02:11]} 13. Bb3 {[%clk 0:02:06]}  O-O {[%clk 0:01:36]} 14. Nxd4 {[%clk 0:01:59]}  Nec6 {[%clk 0:01:22]} 15. axb5 {[%clk 0:01:54]}  axb5 {[%clk 0:01:17]} 16. Rxa8 {[%clk 0:01:55]}  Qxa8 {[%clk 0:01:12]} 17. Nxb5 {[%clk 0:01:55]}  Bxe5 {[%clk 0:00:58]} 18. N1c3 {[%clk 0:01:43]}  Na5 {[%clk 0:00:56]} 19. Rxe5 {[%clk 0:01:38]}  Nxb3 {[%clk 0:00:53]} 20. Qxb3 {[%clk 0:01:36]}  Nd3 {[%clk 0:00:53]} 21. Re3 {[%clk 0:01:06]}  Nxc1 {[%clk 0:00:47]} 22. Qc2 {[%clk 0:01:05]}  Na2 {[%clk 0:00:23]} 23. Nxa2 {[%clk 0:00:35]}  Qxa2 {[%clk 0:00:24]} 24. Qd2 {[%clk 0:00:36]}  Bc6 {[%clk 0:00:16]} 25. Nc3 {[%clk 0:00:36]}  Qa1+ {[%clk 0:00:15]} 26. Re1 {[%clk 0:00:36]}  Qa8 {[%clk 0:00:16]} 27. f3 {[%clk 0:00:35]}  Re8 {[%clk 0:00:15]} 28. Rxe8+ {[%clk 0:00:27]}  Qxe8 {[%clk 0:00:16]} 29. Kf2 {[%clk 0:00:27]}  Qe5 {[%clk 0:00:16]} 30. Qe3 {[%clk 0:00:26]}  Qxe3+ {[%clk 0:00:13]} 31. Kxe3 {[%clk 0:00:27]}  Kf8 {[%clk 0:00:13]} 32. Kd4 {[%clk 0:00:28]}  Ke7 {[%clk 0:00:14]} 33. Kc5 {[%clk 0:00:27]}  Ke6 {[%clk 0:00:13]} 34. b4 {[%clk 0:00:26]}  Ba8 {[%clk 0:00:08]} 35. b5 {[%clk 0:00:23]}  d6+ {[%clk 0:00:09]} 36. Kb6 {[%clk 0:00:20]}  d5 {[%clk 0:00:09]} 37. Kc5 {[%clk 0:00:18]}  Ke5 {[%clk 0:00:08]} 38. Ne2 {[%clk 0:00:18]}  g5 {[%clk 0:00:03]} 39. Nd4 {[%clk 0:00:18]}  f5 {[%clk 0:00:03]} 40. b6 {[%clk 0:00:17]}  g4 {[%clk 0:00:02]} 41. fxg4 {[%clk 0:00:16]}  fxg4 {[%clk 0:00:03]} 42. g3 {[%clk 0:00:16]}  h5 {[%clk 0:00:03]} 43. Nb5 {[%clk 0:00:11]}  Ke4 {[%clk 0:00:02]} 44. Nc3+ {[%clk 0:00:07]}  Ke5 {[%clk 0:00:02]} 45. Nb5 {[%clk 0:00:06]}  Ke4 {[%clk 0:00:01]} 46. Nd4 {[%clk 0:00:07]}  Ke5 {[%clk 0:00:02]} 47. Nc6+ {[%clk 0:00:08]}  Bxc6 {[%clk 0:00:01]} 48. Kxc6 {[%clk 0:00:08]}  d4 {[%clk 0:00:02]} 49. b7 {[%clk 0:00:08]}  d3 {[%clk 0:00:03]} 50. b8=Q+ {[%clk 0:00:09]}  Ke4 {[%clk 0:00:03]} 51. Qf4# {[%clk 0:00:09]} 1-0


[Site "https://www.chess.com"]

[Event "Titled Tuesday Blitz August 22 Late 2023"]
[White "Janaszak, Dawid"]
[Black "Wieczorek, Zbigniew"]
[WhiteFideId "1119206"]
[BlackFideId "1102001"]
[WhiteElo "2522"]
[BlackElo "2166"]
[Result "0-1"]
[Round "2"]
[TimeControl "180+1"]
[Date "2023.08.22"]
[WhiteClock "0:00:31"]
[BlackClock "0:00:02"]
[Board "118"]

1. e4 {[%clk 0:03:00]}  g6 {[%clk 0:02:59]} 2. Nc3 {[%clk 0:03:00]}  Bg7 {[%clk 0:02:58]} 3. Bc4 {[%clk 0:03:01]}  c6 {[%clk 0:02:58]} 4. d4 {[%clk 0:03:00]}  d5 {[%clk 0:02:57]} 5. exd5 {[%clk 0:03:00]}  b5 {[%clk 0:02:57]} 6. Bb3 {[%clk 0:03:00]}  b4 {[%clk 0:02:58]} 7. Na4 {[%clk 0:02:56]}  cxd5 {[%clk 0:02:57]} 8. Nf3 {[%clk 0:02:52]}  Nf6 {[%clk 0:02:57]} 9. O-O {[%clk 0:02:52]}  Bg4 {[%clk 0:02:50]} 10. h3 {[%clk 0:02:49]}  Bxf3 {[%clk 0:02:50]} 11. Qxf3 {[%clk 0:02:50]}  Nc6 {[%clk 0:02:48]} 12. c3 {[%clk 0:02:48]}  O-O {[%clk 0:02:44]} 13. Re1 {[%clk 0:02:49]}  e6 {[%clk 0:02:30]} 14. Bf4 {[%clk 0:02:46]}  Ne4 {[%clk 0:02:28]} 15. Rac1 {[%clk 0:02:39]}  bxc3 {[%clk 0:02:27]} 16. bxc3 {[%clk 0:02:37]}  Rc8 {[%clk 0:02:25]} 17. Qd3 {[%clk 0:02:29]}  Qh4 {[%clk 0:01:48]} 18. Be3 {[%clk 0:02:29]}  f5 {[%clk 0:01:40]} 19. f3 {[%clk 0:02:21]}  f4 {[%clk 0:00:39]} 20. fxe4 {[%clk 0:02:18]}  fxe3 {[%clk 0:00:39]} 21. exd5 {[%clk 0:02:13]}  Rf2 {[%clk 0:00:12]} 22. Qxe3 {[%clk 0:02:04]}  Rcf8 {[%clk 0:00:10]} 23. dxc6 {[%clk 0:01:56]}  Bh6 {[%clk 0:00:04]} 24. Qxe6+ {[%clk 0:01:56]}  Kh8 {[%clk 0:00:04]} 25. Qe5+ {[%clk 0:01:57]}  Bg7 {[%clk 0:00:04]} 26. Qh2 {[%clk 0:01:43]}  Bh6 {[%clk 0:00:03]} 27. Rcd1 {[%clk 0:01:38]}  Bf4 {[%clk 0:00:02]} 28. Qh1 {[%clk 0:01:36]}  Qg3 {[%clk 0:00:02]} 29. Nc5 {[%clk 0:00:34]}  Rf1+ {[%clk 0:00:02]} 30. Rxf1 {[%clk 0:00:31]}  Be3+ {[%clk 0:00:02]} 0-1


[Site "https://www.chess.com"]